[Event "European Amateur Chess-ch 2022"]
[Site "Zagreb"]
[Date "2022.08.15"]
[Round "2.7"]
[White "Brigljevic, Milan"]
[Black "Colev, Ivor"]
[Result "1-0"]
[ECO "A04"]
[WhiteElo "2161"]
[BlackElo "1950"]
[Annotator "RC"]
[PlyCount "81"]
[EventDate "2022.08.14"]
[EventCountry "CRO"]
[SourceTitle "playchess.com"]
[Source "ChessBase"]
[SourceQuality "1"]
[TimeControl "40/5400+30:1800+30"]

1. Nf3 f5 2. g3 Nf6 3. Bg2 g6 4. O-O Bg7 5. c4 d6 6. Nc3 e5 7. e4 fxe4 8. Ng5 O-O 9. Ngxe4 Nxe4 10. Nxe4 Nc6 11. d3 Bf5 12. Be3 Kh8 13. Qd2 Qd7 14. b4 Bh3 15. b5 Ne7 16. Bh6 Bxg2 17. Bxg7+ Kxg7 18. Kxg2 d5 19. Nc5 Qf5 20. Qe2 b6 21. g4 Qc8 22. Qxe5+ Kf7 23. Na6 Qxg4+ 24. Qg3 Qh5 25. h3 Nf5 26. Qg4 Rac8 27. cxd5 Nh4+ 28. Kg3 Nf5+ 29. Kh2 Qxg4 30. hxg4 Ne7 31. Rac1 Nxd5 32. Kg3 Rfe8 33. Rc4 Re2 34. Rfc1 Re7 35. Rd4 Nf6 36. Rc6 Ne8 37. Nb4 Re6 38. Rf4+ Ke7 39. Nd5+ Kd7 40. Rf7+ Kd8 41. Rxe6 1-0

[Event "European Amateur Chess-ch 2022"]
[Site "Zagreb"]
[Date "2022.08.15"]
[Round "2.8"]
[White "Basaric, Srdjan"]
[Black "Roska, Branislav"]
[Result "1/2-1/2"]
[ECO "B23"]
[WhiteElo "2024"]
[BlackElo "2153"]
[Annotator "TA"]
[PlyCount "39"]
[EventDate "2022.08.14"]
[EventCountry "CRO"]
[SourceTitle "playchess.com"]
[Source "ChessBase"]
[SourceQuality "1"]
[TimeControl "40/5400+30:1800+30"]

{[%evp 9,39,21,57,60,53,52,46,37,89,71,82,70,135,130,136,97,93,90,92,86,107,92,92,83,117,79,78,75,83,66,97,91]} 1. e4 c5 2. Nc3 e6 3. Nge2 a6 4. g3 {[%cal Bg2g3,Bg3g4][%mdl 32]} Nc6 5. Bg2 e5 6. O-O {B23: Closed Sicilian: Lines without g3.} d6 7. d3 {[#]} h5 $146 ({Predecessor:} 7... Nf6 8. f4 exf4 9. Nxf4 Be6 10. Nfd5 Be7 11. Nxe7 Qxe7 12. Bg5 h6 13. Bxf6 gxf6 {1-0 (39) Skocik,J (1921)-Vagovic,M (1610) Slovakia 2015}) 8. h3 {White is slightly better.} h4 {[#]} (8... Nf6 $14) 9. g4 $1 $16 g5 {Prevents f4.} 10. Nd5 {[%cal Oc1g5,Bc3d5,Bd5e3,Be3f5][%mdl 32] aiming for Bxg5!} Be6 (10... Bh6 $14) 11. c3 f6 12. Ne3 {White is more active.} Nge7 13. d4 {[#] Black must now prevent d5.} Bf7 14. Re1 Ng6 15. Nf5 Qc7 16. Be3 Be7 17. Ng7+ Kf8 18. Nf5 Kg8 19. Qd2 Kh7 20. Red1 {Weighted Error Value: White=0.10 (very precise) /Black=0.16 (very precise)} 1/2-1/2

[Event "European Amateur Chess-ch 2022"]
[Site "Zagreb"]
[Date "2022.08.15"]
[Round "2.9"]
[White "Starcevic, Ante Leon"]
[Black "Jakovic, Roko"]
[Result "1-0"]
[ECO "B10"]
[WhiteElo "2152"]
[BlackElo "1921"]
[Annotator "TA"]
[PlyCount "81"]
[EventDate "2022.08.14"]
[EventCountry "CRO"]
[SourceTitle "playchess.com"]
[Source "ChessBase"]
[SourceQuality "1"]
[TimeControl "40/5400+30:1800+30"]

{[%evp 17,81,56,81,70,73,68,80,66,103,94,125,112,143,141,163,126,124,77,144,134,191,203,225,222,234,239,217,209,366,366,418,416,414,397,410,391,420,414,424,260,259,218,399,374,750,743,739,698,696,651,837,817,822,788,1200,956,1651,1132,7810,6213,29963,29964,29980,29981,6211,6133]} 1. c4 c6 2. e4 d5 3. exd5 cxd5 4. cxd5 Nf6 5. Bb5+ Bd7 6. Bc4 g6 7. Nc3 Bg7 8. Nf3 O-O 9. O-O Bg4 10. h3 {B10: Caro-Kann: 2 d3 and 2 c4.} Bxf3 11. Qxf3 ({Reject} 11. gxf3 Qc8 12. Bb3 Qxh3 $15) 11... Nbd7 12. Re1 {Inhibits Ne5. White is better.} Nb6 13. d3 {White is more active.} Rc8 14. Bb3 Qd7 15. Be3 Rfd8 {[%cal Rb6d5]} 16. Bxb6 axb6 17. Qe3 (17. Re2 $142) 17... b5 ({Better is} 17... Ne8) 18. Qxe7 $16 Qxe7 (18... Ne8 $16 {was worth a try.} 19. Qxd7 Rxd7 20. Nxb5 Bxb2) 19. Rxe7 $18 b4 {[#]} 20. Ne4 Nxd5 21. Rxb7 {[#]} h6 $146 ({Predecessor:} 21... Bxb2 22. Rb1 Be5 23. Re1 Nc7 24. Ng5 Bf4 25. Nxf7 Rxd3 26. Ne5+ {1-0 (26) Peters,A (2315)-Mertens,M Leipzig 1996}) 22. Rb1 Nc7 $2 (22... Kf8 23. Nd2 Ne7) 23. Rc1 ({Don't take} 23. Rxb4 Rb8 $18) 23... Ne6 24. Rxc8 Rxc8 25. Bxe6 fxe6 26. Rxb4 {[%mdl 4096] Endgame KRB-KRN} Rc1+ 27. Kh2 Rd1 28. Rb3 {Threatens to win with a4.} Ra1 29. a3 {Hoping for Rb4.} Rb1 $2 (29... Be5+ 30. g3 Ra2) 30. Nd2 Rxb2 (30... Be5+ 31. g3 Rxb2) 31. Rxb2 Bxb2 {KB-KN} 32. Nc4 Bd4 33. Kg3 Kf7 34. f4 Kf6 35. Kf3 g5 36. fxg5+ hxg5 37. a4 {[%cal Ba3a4,Ba4a5,Ba5a6][%mdl 32]} e5 38. Ke4 {White wants to mate with a5.} Ke6 39. a5 Kf6 40. a6 Ke6 {[#]} 41. Nxe5 $1 {[%mdl 512] Weighted Error Value: White=0.22 (precise) /Black=0.42} 1-0

[Event "European Amateur Chess-ch 2022"]
[Site "Zagreb"]
[Date "2022.08.15"]
[Round "2.10"]
[White "Dzaja, Martin Zorislav"]
[Black "Fajdetic, Hrvoje"]
[Result "1-0"]
[ECO "A96"]
[WhiteElo "1974"]
[BlackElo "2151"]
[Annotator "TA"]
[PlyCount "75"]
[EventDate "2022.08.14"]
[EventCountry "CRO"]
[SourceTitle "playchess.com"]
[Source "ChessBase"]
[SourceQuality "1"]
[TimeControl "40/5400+30:1800+30"]

{[%evp 13,75,42,53,72,66,50,70,14,24,37,61,54,70,54,53,58,68,24,100,115,112,106,114,114,164,156,270,260,235,62,192,-23,-30,-60,-60,-115,-114,-115,-58,-98,-89,-104,-119,-118,-23,-23,0,-108,-113,-117,-102,-110,-40,-54,-52,-121,-119,-117,-74,-83,-35,-46,27,28]} 1. Nf3 e6 2. c4 f5 3. d4 Nf6 4. g3 Be7 5. Bg2 O-O 6. O-O d6 7. Nc3 Ne4 8. Nxe4 {A96: Classical Dutch: Fluid Systems: Early deviations.} fxe4 9. Nd2 d5 10. Qb3 (10. f3 $14) 10... Kh8 11. f3 {[#]} exf3 $146 ({Predecessor:} 11... Bf6 12. cxd5 exd5 13. fxe4 Bxd4+ 14. e3 Rxf1+ 15. Kxf1 Bb6 16. exd5 Na6 17. Nc4 Nc5 {1-0 (28) Cesal,J (2136)-Bevan,P (1901) Prague 2020}) 12. Nxf3 Nc6 13. Bd2 {[%cal Bc1d2,Bd2c3,Bc3b4][%mdl 32] Prevents Na5.} Bf6 14. Bc3 Ne7 15. Bb4 c6 (15... a5 $11 {remains equal.} 16. Bxe7 Qxe7) 16. Rad1 b6 17. e4 {White is more active.} dxe4 18. Ne5 Bb7 (18... Bxe5 $16 {is a better defense.} 19. Rxf8+ (19. dxe5 Rxf1+ 20. Kxf1 Qe8 $16) 19... Qxf8) 19. Bxe4 $18 {Black must now prevent Qf3.} Qc7 (19... Bxe5 $16 20. Rxf8+ (20. dxe5 Rxf1+ 21. Kxf1 Qe8 $16) 20... Qxf8) 20. Qf3 g6 21. Qg2 $2 ({White must play} 21. Qxf6+ $18 Rxf6 22. Rxf6) 21... Rae8 {[#]} (21... Rad8 $1 $14) 22. Qh3 $2 (22. Rxf6 $1 $18 {[%mdl 512]} Rxf6 23. Bc3) 22... Bxe5 $11 23. Rxf8+ Rxf8 24. dxe5 ({Better is} 24. Bxe7 $15 Qxe7 25. dxe5) 24... c5 $17 25. Bxb7 {[%cal Ob7g2]} Qxb7 (25... cxb4 $17 26. Qh6 Kg8) 26. Bc3 Qf3 27. Rf1 Qe3+ 28. Kh1 Qe4+ (28... Nf5 $1 $17 {...Qe4+ is the strong threat.} 29. Qg2 Qd3) 29. Kg1 $11 Qe3+ (29... Rf5 $11) 30. Kh1 $17 Nf5 $1 31. Qg2 {Against Qe4} Qd3 {[%cal Of5g3] Strongly threatening ...Nxg3+!} 32. Kg1 {[#]} Rd8 ({Weaker is} 32... Qxc4 33. g4 $15) ({Black should try} 32... h5 $1 $17 33. Qf3 Qxc4) 33. Qf3 $15 h5 ({Don't play} 33... Qxc4 34. g4 $14) 34. b3 (34. Qxd3 $15 Rxd3 35. Rf2) 34... Qxf3 35. Rxf3 Kg7 36. Kf2 {[#]} g5 (36... Rd1 $1 $17) 37. Ke2 Rd7 {[#]} (37... Kg6 $15) 38. Rxf5 $1 {[%mdl 32768] Weighted Error Value: White=0.37/Black=0.33. Loss on time!?} 1-0

[Event "European Amateur Chess-ch 2022"]
[Site "Zagreb"]
[Date "2022.08.15"]
[Round "2.11"]
[White "Bouget, Alexandre"]
[Black "Jakupec, Denis"]
[Result "1-0"]
[ECO "E92"]
[WhiteElo "2282"]
[BlackElo "2004"]
[Annotator "TA"]
[PlyCount "41"]
[EventDate "2022.08.14"]
[EventCountry "CRO"]
[SourceTitle "playchess.com"]
[Source "ChessBase"]
[SourceQuality "1"]
[TimeControl "40/5400+30:1800+30"]

{[%evp 16,41,34,22,27,24,36,22,23,44,27,0,65,56,62,66,72,73,73,50,96,96,97,102,125,86,535,513]} 1. d4 Nf6 2. c4 g6 3. Nc3 Bg7 4. e4 d6 5. Be2 O-O 6. Nf3 e5 7. d5 a5 8. Bg5 h6 9. Be3 Ng4 {E92: King's Indian: Classical: 6 Be2 e5: 7 dxe5, 7 Be3 and Petrosian System without 7...Nbd7.} 10. Bd2 f5 11. h3 Nf6 {The position is equal.} 12. exf5 gxf5 13. Qc1 Kh7 ({Black should try} 13... f4 $11) 14. g4 $14 Na6 $1 15. g5 $36 {[%cal Rg5h6][%mdl 2048] White is pushing.} hxg5 16. Nxg5+ Kh8 {[#]} 17. h4 $146 {White is more active.} ({Predecessor:} 17. Qc2 c6 18. O-O-O Nb4 19. Qb3 Qc7 20. Kb1 Bd7 21. Rhg1 Rae8 22. Bc1 Na6 23. Qc2 {0-1 (66) Jepson,C (2417)-Burwick,M (2236) Sweden 2017}) 17... Nc5 (17... Qe7 $14) 18. Qc2 $16 Qe7 19. O-O-O Bd7 20. Be3 Ng4 $2 {[%mdl 8192] [#]} (20... a4 $16 {is a better chance.}) 21. Bxg4 {Weighted Error Value: White=0.07 (flawless) /Black=0.70} 1-0

[Event "European Amateur Chess-ch 2022"]
[Site "Zagreb"]
[Date "2022.08.15"]
[Round "2.12"]
[White "Havas, Janko"]
[Black "Pal, Rohan"]
[Result "1-0"]
[ECO "D02"]
[WhiteElo "2143"]
[BlackElo "1935"]
[Annotator "TA"]
[PlyCount "85"]
[EventDate "2022.08.14"]
[EventCountry "CRO"]
[SourceTitle "playchess.com"]
[Source "ChessBase"]
[SourceQuality "1"]
[TimeControl "40/5400+30:1800+30"]

{[%evp 15,85,-15,-10,-39,-50,-41,-51,-54,-52,-52,-27,-54,-65,-67,-62,-66,-34,-54,-20,-56,-18,-20,8,0,7,12,14,-10,19,25,44,58,106,108,102,70,93,102,110,104,91,94,129,21,93,93,125,27,27,27,27,27,45,20,1677,16,16,0,24,24,236,215,355,337,12839,12839,12840,12840,12841,12841,12840,6177]} 1. d4 d5 2. Bf4 Nf6 3. e3 e6 4. Nd2 Bd6 5. Bg3 c5 6. c3 Qc7 7. Ngf3 Nbd7 8. Bd3 O-O 9. e4 {D02: 1 d4 d5 2 Nf3 sidelines, including 2...Nf6 3 g3 and 2...Nf6 3 Bf4.} cxd4 10. cxd4 {[#] And now e5 would win.} dxe4 11. Bxe4 {Black is slightly better.} Nxe4 12. Nxe4 Bb4+ 13. Ned2 {[#] Pair of Knights!} Qc4 $146 ({Predecessor:} 13... Qa5 14. O-O Nf6 15. Nc4 Qd5 16. Ne3 Qa5 17. Nc4 Qd8 18. Qb3 Be7 19. Rac1 b6 {0-1 (36) Menezes,C (2400)-Bacrot,E (2718) Karlsruhe 2018}) 14. a3 Bxd2+ 15. Qxd2 Nf6 (15... b6 $5 {[%cal Rc8a6]} 16. Rc1 Qb5 $15) 16. Rc1 Qd5 17. Be5 Qe4+ 18. Qe3 Qg6 19. Nh4 Qh5 20. Bxf6 gxf6 21. Nf3 b6 22. Qf4 Bb7 23. Qxf6 Bxf3 (23... Qg6 $14 24. Qf4 (24. Qxg6+ fxg6 25. Ke2 Rf4 $11) 24... f6) 24. gxf3 $16 (24. Qxf3 Qxf3 25. gxf3 Kg7 $14) 24... Qg6 {Inhibits Rg1.} 25. Qf4 $36 {[%mdl 2048] White is more active.} Rac8 26. Kd2 Rxc1 27. Rxc1 {[%mdl 4096] Endgame KQR-KQR} Rd8 28. Rc7 Rd5 29. Ke2 ({White should try} 29. Rxa7 $16 {Hoping for Ra6.} e5 30. Qg3 (30. Ra8+ Kg7 $16)) 29... e5 (29... Kg7 $11) 30. Qg3 Rb5 31. Qxg6+ ({Of course not} 31. Rxa7 $6 Rxb2+ 32. Kf1 Qxg3 33. hxg3 exd4 $11) (31. b4 $16) 31... hxg6 {KR-KR} 32. b4 ({Reject} 32. Rxa7 Rxb2+ 33. Ke1 exd4 $11) 32... a5 33. Rc4 Kg7 34. Kd3 (34. a4 $5 {[%cal Ra4b5]} Rd5 35. dxe5 $14) 34... Kf6 $2 {[%mdl 8192]} (34... exd4 $11 35. Rxd4 (35. Kxd4 Rh5 $14) 35... axb4 36. Rxb4 Rf5) 35. dxe5+ $2 (35. Rc6+ $18 Ke7 36. Kc4) 35... Kxe5 $11 36. a4 Rd5+ 37. Ke3 b5 $2 (37... Kd6 $11) 38. Re4+ $18 Kd6 (38... Kf6 {was worth a try.}) 39. bxa5 {aiming for Rd4.} b4 $2 {[#]} (39... Kc6 40. a6 b4 41. Rxb4 Ra5) 40. Rd4 $1 {White is clearly winning.} Kc5 41. Rxd5+ Kxd5 42. Kd3 Kc5 43. Kc2 {Weighted Error Value: White=0.48/Black=0.39} 1-0

[Event "European Amateur Chess-ch 2022"]
[Site "Zagreb"]
[Date "2022.08.15"]
[Round "2.13"]
[White "Gal, Andrej"]
[Black "Gal, Moshe"]
[Result "0-1"]
[ECO "A57"]
[WhiteElo "1878"]
[BlackElo "2111"]
[Annotator "TA"]
[PlyCount "74"]
[EventDate "2022.08.14"]
[EventCountry "CRO"]
[SourceTitle "playchess.com"]
[Source "ChessBase"]
[SourceQuality "1"]
[TimeControl "40/5400+30:1800+30"]

{[%evp 16,74,9,-22,-20,-138,-107,-228,-226,-358,-325,-354,-344,-396,-357,-362,-312,-626,-711,-697,-680,-658,-609,-591,-439,-526,-584,-560,-559,-590,-590,-589,-574,-579,-561,-1231,-906,-1766,-1631,-1481,-1230,-2518,-1244,-1241,-1230,-943,-677,-749,-727,-795,-823,-1245,-785,-4810,-1447,-29991,-29986,-29992,-29992,-29994,-29995]} 1. d4 Nf6 2. c4 {[%cal Bc2c4,Bc4b5,Bb5b6][%mdl 32]} c5 3. d5 b5 4. cxb5 a6 5. b6 e6 6. Nc3 Nxd5 7. Nxd5 exd5 8. Qxd5 Nc6 9. Bg5 Qxb6 {A57: Benko/Volga Gambit.} 10. O-O-O (10. Qe4+ $11 Be7 11. Bxe7 Nxe7 12. Qxa8) 10... Rb8 $17 {[%csl Gb8][%cal Rb6b2]} 11. Rd2 (11. b3 $17 {keeps fighting.}) 11... d6 $1 $19 {[%cal Bd7d6,Bd6d5][%mdl 32] [#] Threatens to win with ...Be6. Black is clearly better.} 12. g3 $146 (12. Nf3 {was worth a try.}) ({Predecessor:} 12. b3 Be6 13. Qe4 d5 14. Rxd5 c4 15. Qxc4 Ba3+ 16. Kb1 O-O 17. e4 Bxd5 18. exd5 Nb4 19. Bd3 Rbc8 20. Qe4 Nxd3 21. Qxd3 Qf6 {0-1 (21) Cvorovic,D (2425)-Horvath,C (2500) Mravinci 1995}) 12... Be6 13. Qe4 h6 14. Be3 d5 15. Qa4 Bd6 16. Bf4 $2 (16. Bh3 O-O 17. Bxe6 fxe6 18. Nf3) 16... Bxf4 17. gxf4 O-O 18. e3 c4 {[%cal Oc4c3] Strongly threatening ...c3!} 19. Ne2 Rfc8 20. Qa3 c3 21. Nxc3 d4 22. exd4 Nxd4 23. Bd3 Nb5 24. Bxb5 axb5 {[%cal Ba6b5,Bb5b4,Bb4c3][%mdl 32]} 25. Rd6 Qb7 {Hoping for ...b4.} 26. Rg1 b4 {[%mdl 64] Pin, Deflection, Double Attack} 27. Qa5 bxc3 28. b3 {[#]} Qe4 (28... Bxb3 $142 $1 29. Qe5 f6 30. Rxf6 Bxa2) 29. Qe5 Qxe5 30. fxe5 Rc5 {aiming for ...Ra8.} 31. f4 Rb4 32. Rf1 Bf5 33. Rd8+ Kh7 {( -> ...Ra5)} 34. Rf8 {[#]} Rc7 (34... Rxb3 $142 $3 {[%mdl 512]} 35. axb3 Ra5) 35. h4 Rd4 {Black mates.} 36. a4 Rd2 37. Rf3 Ra2 {Black took control after the opening.  Weighted Error Value: White=1.44/Black=0.59} 0-1

[Event "European Amateur Chess-ch 2022"]
[Site "Zagreb"]
[Date "2022.08.15"]
[Round "2.14"]
[White "Horvat, Damjan"]
[Black "Grgantov, Marin"]
[Result "0-1"]
[ECO "D02"]
[WhiteElo "2072"]
[BlackElo "2048"]
[Annotator "NA RC"]
[PlyCount "120"]
[EventDate "2022.08.14"]
[EventCountry "CRO"]
[SourceTitle "playchess.com"]
[Source "ChessBase"]
[SourceQuality "1"]
[TimeControl "40/5400+30:1800+30"]

1. d4 Nf6 2. Nf3 d5 3. Bf4 c5 4. c3 Nc6 5. e3 Qb6 6. Qb3 c4 7. Qc2 Bf5 8. Qc1 e6 9. Be2 Be7 10. Bd1 O-O 11. Bc2 Ne4 12. Nbd2 Qd8 13. O-O g5 14. Bg3 h5 15. h3 Nxg3 16. fxg3 Bxc2 17. Qxc2 g4 18. hxg4 hxg4 19. Nh2 f5 20. Nxg4 Bd6 21. Nh6+ Kg7 22. Nxf5+ exf5 23. Rxf5 Qe7 24. Nf1 Qe6 25. g4 Ne7 26. Rg5+ Kf6 27. Rh5 Qxg4 28. Rh6+ Ng6 29. Nh2 Bxh2+ 30. Rxh2 Kg7 31. b3 b5 32. bxc4 bxc4 33. Rb1 Rf7 34. Rh3 Raf8 35. Re1 Re7 36. Kh2 Ref7 37. Re2 Rh8 38. Rf2 Rxh3+ 39. gxh3 Qe6 40. Rg2 Rf1 41. Rg3 Qf5 42. Qxf5 Rxf5 43. Kg2 Kf6 44. Rg4 Rg5 45. Kf3 Rxg4 46. Kxg4 Ne7 47. Kf4 Ng6+ 48. Kg4 a5 49. h4 Ne7 50. Kf4 Nf5 51. e4 Nxh4 52. exd5 Nf5 53. d6 Nxd6 54. d5 Ke7 55. Ke5 Nb5 56. a3 Kd7 57. d6 Kc6 58. d7 Kxd7 59. Kd5 Nxa3 60. Kc5 Kc7 0-1

[Event "European Amateur Chess-ch 2022"]
[Site "Zagreb"]
[Date "2022.08.15"]
[Round "2.15"]
[White "Prihoda, Leonardo"]
[Black "Vucenovic, Damian"]
[Result "1/2-1/2"]
[ECO "D61"]
[WhiteElo "1995"]
[BlackElo "2053"]
[Annotator "NA RC"]
[PlyCount "71"]
[EventDate "2022.08.14"]
[EventCountry "CRO"]
[SourceTitle "playchess.com"]
[Source "ChessBase"]
[SourceQuality "1"]
[TimeControl "40/5400+30:1800+30"]

1. d4 d5 2. Nf3 Nf6 3. c4 e6 4. Nc3 c6 5. Bg5 Be7 6. e3 O-O 7. Qc2 Nbd7 8. Bd3 Re8 9. O-O Nf8 10. Ne5 dxc4 11. Bxc4 Nd5 12. Bxe7 Qxe7 13. Ne4 Ng6 14. Nxg6 hxg6 15. Nd2 b6 16. Bxd5 cxd5 17. Nf3 g5 18. h3 a5 19. Rfc1 Ba6 20. Qc7 Qxc7 21. Rxc7 f6 22. Rac1 Rac8 23. Nd2 Rxc7 24. Rxc7 Rc8 25. Rxc8+ Bxc8 26. f3 Kf7 27. Kf2 Ba6 28. Kg3 Bd3 29. h4 gxh4+ 30. Kxh4 Kg6 31. g4 e5 32. f4 e4 33. f5+ Kh6 34. Nb3 Bc4 35. Nc1 b5 36. b3 1/2-1/2

[Event "European Amateur Chess-ch 2022"]
[Site "Zagreb"]
[Date "2022.08.15"]
[Round "2.16"]
[White "Vanden Bussche, Steven"]
[Black "Krikunov, Dmitry"]
[Result "1/2-1/2"]
[ECO "D00"]
[WhiteElo "2026"]
[BlackElo "2202"]
[Annotator "TA"]
[PlyCount "86"]
[EventDate "2022.08.14"]
[EventCountry "CRO"]
[SourceTitle "playchess.com"]
[Source "ChessBase"]
[SourceQuality "1"]
[TimeControl "40/5400+30:1800+30"]

{[%evp 9,86,-6,0,0,0,0,20,0,8,-4,23,16,16,18,10,0,8,10,27,18,25,19,34,16,41,11,64,16,16,18,30,25,24,30,59,52,44,21,19,31,33,20,27,23,25,27,25,25,38,15,8,12,12,10,8,8,12,8,12,4,6,4,4,0,20,14,22,16,39,39,39,39,55,0,0,0,0,0,0]} 1. d4 Nf6 2. Bf4 d5 3. e3 Bf5 4. c3 e6 5. Qb3 Qc8 6. Nd2 {D00: 1 d4 d5: Unusual lines.} Be7 7. Ngf3 O-O 8. Be2 Nbd7 9. O-O c5 10. c4 {[#]} Qc6 $146 ({Predecessor:} 10... cxd4 11. exd4 Qd8 12. c5 Ne4 13. Rfd1 b6 14. Nxe4 Bxe4 15. c6 Nf6 16. c7 Qc8 {1-0 (26) Dahl,M (1942)-Gronn,E (1665) Oslo 2018}) 11. cxd5 exd5 12. dxc5 Nxc5 13. Qd1 {aiming for Nd4.} Ne6 14. Be5 Rac8 15. Nb3 {[#] Black must now prevent Nfd4.} Bc2 16. Qe1 Qa4 17. Bd1 Nd7 (17... Bg6 $11) 18. Bc3 (18. Bxc2 $1 $14 {deserves consideration.} Rxc2 19. Bc3) 18... Bxd1 $11 19. Qxd1 Bf6 20. Qxd5 Bxc3 21. bxc3 Qc6 22. Qxc6 Rxc6 23. Na5 Rc7 24. Nd4 b6 25. Nab3 Rxc3 26. Nb5 {[%csl LRa7,LRc3]} Rc2 27. Rfc1 Rxc1+ 28. Rxc1 Ndc5 29. Nxa7 Ra8 30. Nb5 {[%cal Ba7b5,Bb5c3,Bc3e4][%mdl 32]} Rxa2 31. Nxc5 bxc5 {[%mdl 4096] Endgame KRN-KRN} 32. Nc3 Ra5 33. Kf1 Kf8 34. Ke2 Ke7 35. Rd1 Nc7 36. Rd2 Ra3 37. Ne4 Ne6 38. f4 g6 39. g4 f5 40. gxf5 gxf5 41. Nd6 (41. Ng3 $1 $14) 41... Nd4+ {The position is equal.} 42. exd4 Kxd6 43. dxc5+ Kxc5 {Weighted Error Value: White=0.08 (flawless) /Black=0.10 (very precise)} 1/2-1/2

[Event "European Amateur Chess-ch 2022"]
[Site "Zagreb"]
[Date "2022.08.15"]
[Round "2.17"]
[White "Franc, Borna"]
[Black "Cvitkovic, Filip"]
[Result "1/2-1/2"]
[ECO "B21"]
[WhiteElo "2020"]
[BlackElo "2164"]
[Annotator "TA"]
[PlyCount "103"]
[EventDate "2022.08.14"]
[EventCountry "CRO"]
[SourceTitle "playchess.com"]
[Source "ChessBase"]
[SourceQuality "1"]
[TimeControl "40/5400+30:1800+30"]

{[%evp 13,103,-50,-24,-17,0,0,0,0,0,-23,-15,-10,-17,-34,-36,-25,90,-2,0,-2,-2,-31,-32,-28,-8,-45,-22,-18,-12,-47,-11,-34,0,0,0,-62,-61,-107,0,-121,-83,-85,-89,-87,0,0,145,138,254,237,248,234,253,227,224,125,125,126,115,121,120,106,108,81,82,54,54,63,49,37,37,19,19,19,19,19,37,19,37,19,19,19,19,19,19,19,19,19,19,19,19,0]} 1. e4 c5 2. d4 cxd4 3. c3 dxc3 4. Nxc3 Nc6 5. Bc4 e6 6. Nf3 a6 7. O-O Bc5 8. e5 {B21: Sicilian: 2 f4 and Morra Gambit.} d5 {Prevents Ne4.} 9. exd6 $1 Bxd6 10. Ne4 Be7 11. Qe2 Nf6 {[#]} 12. Rd1 $146 ({Predecessor:} 12. Bf4 Nd4 13. Qd3 Nxf3+ 14. Qxf3 Nxe4 15. Qxe4 O-O 16. Rfd1 Qb6 17. Be5 Qc6 18. Qg4 {1-0 (24) Siva,M (2349)-Nurmanova,A (2240) Chess.com INT 2022}) 12... Qc7 13. Bg5 Nxe4 14. Qxe4 Ne5 {[#]} 15. Bxe7 {White is much more active. The black rooks are badly placed.} (15. Nxe5 $6 Bxg5 16. Bd3 Bf6 17. Qa4+ Bd7 18. Nxd7 Qxd7 $11) (15. Qxe5 Qxe5 16. Nxe5 Bxg5 $15) (15. Rac1 $1 $16 Nc6 16. Bf4) 15... Nxf3+ $11 16. Qxf3 Qxe7 17. Bb3 O-O 18. Rac1 a5 {[%cal Ba6a5,Ba5a4][%mdl 32]} 19. Qg3 a4 20. Bc2 g6 (20... e5 {keeps more tension.} 21. Rd5 a3 22. bxa3 Be6) 21. h4 Qf6 22. h5 Qxb2 23. hxg6 hxg6 24. Be4 ({White should play} 24. Bxg6 $11 Qg7 25. Bxf7+ Rxf7 26. Rd8+ Rf8 27. Qd6) 24... Qf6 $1 $15 (24... Qxa2 25. Bxg6 fxg6 26. Qxg6+ Kh8 27. Qh5+ Kg8 28. Qg5+ Kh8 29. Qh4+ Kg8 30. Qg3+ Kh8 31. Rc7) 25. Rc7 {[#]} (25. Rd3 $15) 25... Kg7 (25... e5 $1 $17 {Strongly threatening ...Rb8.} 26. a3 Be6) 26. Rdc1 (26. Bxg6 $1 $11 Qxg6 27. Qe5+ Qf6 28. Qg3+ Qg6 29. Qe5+ Qf6 30. Qg3+ Qg6) 26... e5 27. Bxg6 Qxg6 28. Qxe5+ Qf6 (28... Kg8 $17 {And now ...Bh3 would win.} 29. R7c3 Bg4) 29. Qg3+ $11 Kh8 (29... Qg6 $11 {remains equal.} 30. Qe5+ Kg8) 30. R7c5 $16 {White threatens Rh5+ and mate.} Bf5 (30... Qh6 $16 {is a better defense.}) 31. Qf4 $18 Ra6 {Hoping for ...Bg6.} 32. Rxf5 Qg7 33. Rh5+ ({Don't take} 33. Rg5 $6 Rg6 34. Rh5+ Kg8 $16) 33... Kg8 34. Rg5 ({White should try} 34. Rcc5 $18) 34... Rg6 $16 35. Rxg6 fxg6 36. Qxa4 {[%mdl 4096] Endgame KQR-KQR} Qf6 37. Qb3+ Rf7 38. Rc8+ Kg7 39. Qc3 ({Reject} 39. Qh3 $6 Qxf2+ 40. Kh1 Qf1+ 41. Kh2 Qf4+ 42. Qg3 (42. Kh1 Qf1+ 43. Kh2 Qf4+ 44. Qg3 Qd4 $11) 42... Qd4 $11) 39... Qxc3 40. Rxc3 $14 {KR-KR} Rd7 41. g3 Rd2 42. Rc7+ Kf6 43. Rxb7 Rxa2 44. Kg2 Ra3 45. Rb5 Rc3 46. g4 g5 {The position is equal.} 47. Rf5+ Kg6 48. Ra5 Rc6 49. Kg3 Rc3+ 50. f3 Rc2 51. Ra6+ Kg7 52. Ra5 {Blacks defense is rewarded with a draw.  Weighted Error Value: White=0.20 (precise) /Black=0.26 (precise)} 1/2-1/2